[Event "Titled Tuesday Blitz May 2 Early 2023"]
[White "Koellner, Ruben Gideon"]
[Black "Petrova, Irina"]
[WhiteFideId "12993093"]
[BlackFideId "14124122"]
[WhiteElo "2314"]
[BlackElo "2084"]
[Result "1-0"]
[Round "03"]
[TimeControl "180+2"]
[Date "2023.05.02"]
[WhiteClock "0:02:30"]
[BlackClock "0:01:17"]

1. d4 {[%clk 0:03:00]}  d6 {[%clk 0:02:58]} 2. Nf3 {[%clk 0:03:01]}  g6 {[%clk 0:02:58]} 3. Nbd2 {[%clk 0:03:01]}  Bg7 {[%clk 0:02:58]} 4. e4 {[%clk 0:03:02]}  Nf6 {[%clk 0:02:54]} 5. Bc4 {[%clk 0:03:02]}  O-O {[%clk 0:02:54]} 6. O-O {[%clk 0:03:02]}  c6 {[%clk 0:02:54]} 7. Bb3 {[%clk 0:03:02]}  a5 {[%clk 0:02:51]} 8. a4 {[%clk 0:03:02]}  Nbd7 {[%clk 0:02:44]} 9. e5 {[%clk 0:03:02]}  Nd5 {[%clk 0:02:41]} 10. e6 {[%clk 0:03:02]}  fxe6 {[%clk 0:02:40]} 11. Ng5 {[%clk 0:03:03]}  N7f6 {[%clk 0:02:39]} 12. Re1 {[%clk 0:03:03]}  Qb6 {[%clk 0:02:28]} 13. c3 {[%clk 0:02:55]}  Nh5 {[%clk 0:02:19]} 14. Nxe6 {[%clk 0:02:50]}  Bxe6 {[%clk 0:02:20]} 15. Rxe6 {[%clk 0:02:51]}  Rae8 {[%clk 0:02:12]} 16. Nc4 {[%clk 0:02:48]}  Qc7 {[%clk 0:02:08]} 17. Ne3 {[%clk 0:02:46]}  Nhf4 {[%clk 0:01:56]} 18. Nxd5 {[%clk 0:02:40]}  Nxd5 {[%clk 0:01:53]} 19. Qe2 {[%clk 0:02:36]}  Kh8 {[%clk 0:01:51]} 20. Bg5 {[%clk 0:02:32]}  Nf4 {[%clk 0:01:39]} 21. Bxf4 {[%clk 0:02:32]}  Rxf4 {[%clk 0:01:40]} 22. Re1 {[%clk 0:02:32]}  Bf6 {[%clk 0:01:29]} 23. g3 {[%clk 0:02:32]}  Rf5 {[%clk 0:01:29]} 24. Bc2 {[%clk 0:02:32]}  Rh5 {[%clk 0:01:26]} 25. Rxf6 {[%clk 0:02:31]}  Qc8 {[%clk 0:01:17]} 26. Re6 {[%clk 0:02:30]} 1-0


[Site "https://www.chess.com"]

[Event "Titled Tuesday Blitz May 2 Early 2023"]
[White "Andreev, Konstantin"]
[Black "Dehtiarov, Roman"]
[WhiteFideId "24239305"]
[BlackFideId "14186640"]
[WhiteElo "2106"]
[BlackElo "2189"]
[Result "1-0"]
[Round "03"]
[TimeControl "180+2"]
[Date "2023.05.02"]
[WhiteClock "0:01:24"]
[BlackClock "0:00:05"]

1. e4 {[%clk 0:03:00]}  e5 {[%clk 0:02:57]} 2. Nf3 {[%clk 0:03:00]}  Nc6 {[%clk 0:02:57]} 3. Bc4 {[%clk 0:03:00]}  Bc5 {[%clk 0:02:56]} 4. c3 {[%clk 0:03:00]}  Nf6 {[%clk 0:02:56]} 5. d4 {[%clk 0:03:00]}  exd4 {[%clk 0:02:57]} 6. b4 {[%clk 0:03:01]}  Be7 {[%clk 0:02:36]} 7. e5 {[%clk 0:03:00]}  Ne4 {[%clk 0:02:36]} 8. b5 {[%clk 0:03:00]}  Na5 {[%clk 0:01:59]} 9. Bd3 {[%clk 0:02:59]}  d5 {[%clk 0:01:57]} 10. cxd4 {[%clk 0:02:59]}  O-O {[%clk 0:01:56]} 11. O-O {[%clk 0:02:59]}  Bg4 {[%clk 0:01:49]} 12. Nbd2 {[%clk 0:02:59]}  f5 {[%clk 0:01:42]} 13. exf6 {[%clk 0:02:54]}  Nxf6 {[%clk 0:01:35]} 14. Qc2 {[%clk 0:02:52]}  Bd6 {[%clk 0:01:24]} 15. Ne5 {[%clk 0:02:50]}  Bh5 {[%clk 0:01:18]} 16. Ndf3 {[%clk 0:02:48]}  Bxf3 {[%clk 0:01:10]} 17. Nxf3 {[%clk 0:02:48]}  c6 {[%clk 0:01:08]} 18. Bg5 {[%clk 0:02:40]}  cxb5 {[%clk 0:01:05]} 19. Bxh7+ {[%clk 0:02:38]}  Kh8 {[%clk 0:01:03]} 20. Bg6 {[%clk 0:02:37]}  Qd7 {[%clk 0:00:51]} 21. Qd3 {[%clk 0:02:32]}  Nc4 {[%clk 0:00:33]} 22. Nh4 {[%clk 0:02:26]}  Qg4 {[%clk 0:00:24]} 23. f4 {[%clk 0:02:07]}  Ne4 {[%clk 0:00:09]} 24. Bxe4 {[%clk 0:01:55]}  dxe4 {[%clk 0:00:09]} 25. Qxe4 {[%clk 0:01:55]}  Rae8 {[%clk 0:00:09]} 26. Ng6+ {[%clk 0:01:54]}  Kg8 {[%clk 0:00:09]} 27. Qd5+ {[%clk 0:01:54]}  Qe6 {[%clk 0:00:05]} 28. Qxe6+ {[%clk 0:01:54]}  Rxe6 {[%clk 0:00:06]} 29. Nxf8 {[%clk 0:01:54]}  Bxf8 {[%clk 0:00:07]} 30. Rfe1 {[%clk 0:01:54]}  Rd6 {[%clk 0:00:07]} 31. Re8 {[%clk 0:01:53]}  Kf7 {[%clk 0:00:05]} 32. Rb8 {[%clk 0:01:49]}  Rxd4 {[%clk 0:00:05]} 33. Rxb7+ {[%clk 0:01:49]}  Kg6 {[%clk 0:00:06]} 34. Rxa7 {[%clk 0:01:45]}  Rd3 {[%clk 0:00:05]} 35. Ra6+ {[%clk 0:01:43]}  Kh7 {[%clk 0:00:05]} 36. h3 {[%clk 0:01:38]}  Bc5+ {[%clk 0:00:05]} 37. Kh2 {[%clk 0:01:39]}  Bf2 {[%clk 0:00:06]} 38. Rf1 {[%clk 0:01:37]}  Bg3+ {[%clk 0:00:06]} 39. Kh1 {[%clk 0:01:38]}  Ne3 {[%clk 0:00:06]} 40. Rc1 {[%clk 0:01:35]}  Rd2 {[%clk 0:00:06]} 41. f5 {[%clk 0:01:31]}  Re2 {[%clk 0:00:05]} 42. Bxe3 {[%clk 0:01:31]}  Rxe3 {[%clk 0:00:06]} 43. Rb6 {[%clk 0:01:31]}  Re5 {[%clk 0:00:06]} 44. Rb1 {[%clk 0:01:30]}  Rxf5 {[%clk 0:00:04]} 45. R6xb5 {[%clk 0:01:30]}  Rf2 {[%clk 0:00:04]} 46. R5b2 {[%clk 0:01:29]}  Rf5 {[%clk 0:00:03]} 47. Rb3 {[%clk 0:01:29]}  Bd6 {[%clk 0:00:03]} 48. a4 {[%clk 0:01:29]}  Ra5 {[%clk 0:00:04]} 49. Ra1 {[%clk 0:01:29]}  Be5 {[%clk 0:00:04]} 50. Ra2 {[%clk 0:01:29]}  Bd6 {[%clk 0:00:04]} 51. Rb5 {[%clk 0:01:29]}  Ra6 {[%clk 0:00:05]} 52. a5 {[%clk 0:01:29]}  Bc7 {[%clk 0:00:05]} 53. Kg1 {[%clk 0:01:28]}  Kg6 {[%clk 0:00:05]} 54. Kf2 {[%clk 0:01:28]}  Kf6 {[%clk 0:00:05]} 55. Ke3 {[%clk 0:01:29]}  Ke6 {[%clk 0:00:06]} 56. Kd4 {[%clk 0:01:30]}  Kd6 {[%clk 0:00:07]} 57. Kc4 {[%clk 0:01:30]}  Kc6 {[%clk 0:00:07]} 58. Rc5+ {[%clk 0:01:30]}  Kd7 {[%clk 0:00:06]} 59. Kb5 {[%clk 0:01:31]}  Ra8 {[%clk 0:00:06]} 60. Rd2+ {[%clk 0:01:30]}  Kc8 {[%clk 0:00:06]} 61. a6 {[%clk 0:01:30]}  Rb8+ {[%clk 0:00:06]} 62. Kc4 {[%clk 0:01:28]}  Ra8 {[%clk 0:00:07]} 63. Ra2 {[%clk 0:01:27]}  Kd7 {[%clk 0:00:06]} 64. a7 {[%clk 0:01:25]}  Bb6 {[%clk 0:00:06]} 65. Rb5 {[%clk 0:01:25]}  Kc6 {[%clk 0:00:06]} 66. Ra6 {[%clk 0:01:24]}  Kb7 {[%clk 0:00:05]} 67. Rbxb6+ {[%clk 0:01:24]}  Kc7 {[%clk 0:00:05]} 68. Rb8 {[%clk 0:01:24]} 1-0


[Site "https://www.chess.com"]

[Event "Titled Tuesday Blitz May 2 Early 2023"]
[White "Principe, Gerson"]
[Black "Sieciechowicz, Marcin"]
[WhiteFideId "3804550"]
[BlackFideId "1130170"]
[WhiteElo "2229"]
[BlackElo "2302"]
[Result "0-1"]
[Round "03"]
[TimeControl "180+2"]
[Date "2023.05.02"]
[WhiteClock "0:00:04"]
[BlackClock "0:01:36"]

1. d4 {[%clk 0:02:59]}  Nf6 {[%clk 0:02:59]} 2. Nf3 {[%clk 0:02:59]}  g6 {[%clk 0:03:00]} 3. e3 {[%clk 0:02:54]}  Bg7 {[%clk 0:03:00]} 4. Be2 {[%clk 0:02:55]}  O-O {[%clk 0:03:00]} 5. O-O {[%clk 0:02:56]}  d5 {[%clk 0:03:01]} 6. b3 {[%clk 0:02:53]}  c5 {[%clk 0:03:01]} 7. Bb2 {[%clk 0:02:53]}  Ne4 {[%clk 0:03:01]} 8. Nbd2 {[%clk 0:02:53]}  Nc6 {[%clk 0:03:01]} 9. c4 {[%clk 0:02:53]}  cxd4 {[%clk 0:02:59]} 10. Nxe4 {[%clk 0:02:02]}  d3 {[%clk 0:02:33]} 11. Bxg7 {[%clk 0:01:51]}  dxe2 {[%clk 0:02:33]} 12. Qxe2 {[%clk 0:01:49]}  dxe4 {[%clk 0:02:33]} 13. Bxf8 {[%clk 0:01:43]}  exf3 {[%clk 0:02:33]} 14. Qxf3 {[%clk 0:01:40]}  Qxf8 {[%clk 0:02:33]} 15. Rfd1 {[%clk 0:01:34]}  Be6 {[%clk 0:02:33]} 16. Rd2 {[%clk 0:01:32]}  Rd8 {[%clk 0:02:33]} 17. Rad1 {[%clk 0:01:32]}  Rxd2 {[%clk 0:02:33]} 18. Rxd2 {[%clk 0:01:33]}  h5 {[%clk 0:02:31]} 19. Qf4 {[%clk 0:01:30]}  Qg7 {[%clk 0:02:30]} 20. h3 {[%clk 0:01:26]}  Qc3 {[%clk 0:02:29]} 21. e4 {[%clk 0:01:05]}  Kg7 {[%clk 0:02:22]} 22. Kh2 {[%clk 0:01:05]}  a5 {[%clk 0:02:20]} 23. Re2 {[%clk 0:00:56]}  a4 {[%clk 0:02:14]} 24. Re3 {[%clk 0:00:50]}  Qd2 {[%clk 0:02:06]} 25. bxa4 {[%clk 0:00:42]}  Bxc4 {[%clk 0:02:05]} 26. e5 {[%clk 0:00:39]}  Bxa2 {[%clk 0:01:56]} 27. g4 {[%clk 0:00:22]}  hxg4 {[%clk 0:01:52]} 28. hxg4 {[%clk 0:00:22]}  Bd5 {[%clk 0:01:50]} 29. g5 {[%clk 0:00:11]}  Nd4 {[%clk 0:01:46]} 30. Qh4 {[%clk 0:00:04]}  Nf5 {[%clk 0:01:36]} 0-1


[Site "https://www.chess.com"]

[Event "Titled Tuesday Blitz May 2 Early 2023"]
[White "Reefat, Bin-Sattar"]
[Black "Harshavardhan G B"]
[WhiteFideId "10200207"]
[BlackFideId "25059009"]
[WhiteElo "2462"]
[BlackElo "2323"]
[Result "1-0"]
[Round "03"]
[TimeControl "180+2"]
[Date "2023.05.02"]
[WhiteClock "0:01:56"]
[BlackClock "0:01:42"]

1. e4 {[%clk 0:03:00]}  e6 {[%clk 0:02:57]} 2. d4 {[%clk 0:02:59]}  d5 {[%clk 0:02:57]} 3. e5 {[%clk 0:02:59]}  c5 {[%clk 0:02:57]} 4. c3 {[%clk 0:03:00]}  Nc6 {[%clk 0:02:57]} 5. Nf3 {[%clk 0:03:00]}  Qb6 {[%clk 0:02:57]} 6. a3 {[%clk 0:03:00]}  c4 {[%clk 0:02:57]} 7. Nbd2 {[%clk 0:03:00]}  Na5 {[%clk 0:02:57]} 8. h4 {[%clk 0:03:00]}  Bd7 {[%clk 0:02:56]} 9. g3 {[%clk 0:03:00]}  Ne7 {[%clk 0:02:55]} 10. Bh3 {[%clk 0:03:00]}  O-O-O {[%clk 0:02:42]} 11. O-O {[%clk 0:02:51]}  Nb3 {[%clk 0:02:35]} 12. Nxb3 {[%clk 0:02:50]}  Ba4 {[%clk 0:02:35]} 13. Ng5 {[%clk 0:02:34]}  Bxb3 {[%clk 0:02:29]} 14. Qe2 {[%clk 0:02:23]}  Rg8 {[%clk 0:01:58]} 15. Nxf7 {[%clk 0:02:20]}  Rd7 {[%clk 0:01:56]} 16. Nd6+ {[%clk 0:02:17]}  Kd8 {[%clk 0:01:43]} 17. Bxe6 {[%clk 0:02:15]}  g6 {[%clk 0:01:42]} 18. Bg5 {[%clk 0:01:56]} 1-0


[Site "https://www.chess.com"]

[Event "Titled Tuesday Blitz May 2 Early 2023"]
[White "Papasimakopoulos, Alexandros"]
[Black "Omelja, Artem"]
[WhiteFideId "4244125"]
[BlackFideId "14119846"]
[WhiteElo "2359"]
[BlackElo "2404"]
[Result "0-1"]
[Round "03"]
[TimeControl "180+2"]
[Date "2023.05.02"]
[WhiteClock "0:00:05"]
[BlackClock "0:00:12"]

1. d4 {[%clk 0:03:00]}  Nf6 {[%clk 0:02:47]} 2. c4 {[%clk 0:03:00]}  e6 {[%clk 0:02:46]} 3. Nc3 {[%clk 0:02:58]}  b6 {[%clk 0:02:43]} 4. e4 {[%clk 0:02:55]}  Bb4 {[%clk 0:02:38]} 5. e5 {[%clk 0:02:44]}  Ne4 {[%clk 0:02:32]} 6. Qf3 {[%clk 0:02:16]}  Bb7 {[%clk 0:02:23]} 7. a3 {[%clk 0:02:17]}  Bxc3+ {[%clk 0:02:11]} 8. bxc3 {[%clk 0:02:17]}  O-O {[%clk 0:01:42]} 9. Bd3 {[%clk 0:02:16]}  Nc5 {[%clk 0:01:39]} 10. Bxh7+ {[%clk 0:02:12]}  Kxh7 {[%clk 0:01:39]} 11. Qh3+ {[%clk 0:02:10]}  Kg8 {[%clk 0:01:37]} 12. dxc5 {[%clk 0:02:11]}  bxc5 {[%clk 0:01:36]} 13. Nf3 {[%clk 0:02:09]}  f6 {[%clk 0:01:22]} 14. O-O {[%clk 0:02:09]}  Nc6 {[%clk 0:01:18]} 15. exf6 {[%clk 0:02:08]}  Qxf6 {[%clk 0:01:19]} 16. Rb1 {[%clk 0:02:00]}  Ba6 {[%clk 0:01:15]} 17. Rd1 {[%clk 0:01:50]}  d6 {[%clk 0:01:06]} 18. Ng5 {[%clk 0:01:50]}  Qf5 {[%clk 0:01:05]} 19. Qxf5 {[%clk 0:01:36]}  exf5 {[%clk 0:01:02]} 20. Ne6 {[%clk 0:01:29]}  Rf7 {[%clk 0:00:59]} 21. Nf4 {[%clk 0:01:14]}  Bxc4 {[%clk 0:00:57]} 22. Nd5 {[%clk 0:01:13]}  Re8 {[%clk 0:00:47]} 23. Bf4 {[%clk 0:00:59]}  Re4 {[%clk 0:00:34]} 24. g3 {[%clk 0:00:59]}  Bxd5 {[%clk 0:00:31]} 25. Rxd5 {[%clk 0:00:59]}  Ra4 {[%clk 0:00:31]} 26. Ra1 {[%clk 0:00:47]}  Na5 {[%clk 0:00:24]} 27. h4 {[%clk 0:00:33]}  Nc4 {[%clk 0:00:22]} 28. Bc1 {[%clk 0:00:34]}  g6 {[%clk 0:00:20]} 29. Kf1 {[%clk 0:00:33]}  Re7 {[%clk 0:00:18]} 30. h5 {[%clk 0:00:33]}  Kf7 {[%clk 0:00:18]} 31. h6 {[%clk 0:00:31]}  Kg8 {[%clk 0:00:17]} 32. Rb1 {[%clk 0:00:30]}  c6 {[%clk 0:00:16]} 33. h7+ {[%clk 0:00:22]}  Kxh7 {[%clk 0:00:16]} 34. Rb8 {[%clk 0:00:23]}  cxd5 {[%clk 0:00:15]} 35. Bg5 {[%clk 0:00:20]}  Rf7 {[%clk 0:00:14]} 36. Rd8 {[%clk 0:00:16]}  Rxa3 {[%clk 0:00:14]} 37. Kg2 {[%clk 0:00:12]}  Rxc3 {[%clk 0:00:14]} 38. f4 {[%clk 0:00:12]}  Ne3+ {[%clk 0:00:12]} 39. Kf3 {[%clk 0:00:09]}  Ng4+ {[%clk 0:00:12]} 40. Ke2 {[%clk 0:00:09]}  Rxg3 {[%clk 0:00:11]} 41. Rxd6 {[%clk 0:00:09]}  d4 {[%clk 0:00:11]} 42. Rd5 {[%clk 0:00:09]}  Re3+ {[%clk 0:00:10]} 43. Kd2 {[%clk 0:00:10]}  Nf2 {[%clk 0:00:10]} 44. Rd8 {[%clk 0:00:07]}  Ne4+ {[%clk 0:00:10]} 45. Kc2 {[%clk 0:00:07]}  Nxg5 {[%clk 0:00:11]} 46. fxg5 {[%clk 0:00:07]}  f4 {[%clk 0:00:12]} 47. Kd2 {[%clk 0:00:07]}  f3 {[%clk 0:00:12]} 48. Rd7 {[%clk 0:00:05]}  Rxd7 {[%clk 0:00:12]} 0-1


[Site "https://www.chess.com"]

[Event "Titled Tuesday Blitz May 2 Early 2023"]
[White "Salman, Pavel"]
[Black "Kvaloy, Aksel Bu"]
[WhiteFideId "24153753"]
[BlackFideId "1528815"]
[WhiteElo "2187"]
[BlackElo "2208"]
[Result "0-1"]
[Round "03"]
[TimeControl "180+2"]
[Date "2023.05.02"]
[WhiteClock "0:00:40"]
[BlackClock "0:01:13"]

1. Nf3 {[%clk 0:03:00]}  d5 {[%clk 0:02:55]} 2. g3 {[%clk 0:03:00]}  Nf6 {[%clk 0:02:55]} 3. Bg2 {[%clk 0:03:00]}  Bg4 {[%clk 0:02:55]} 4. O-O {[%clk 0:03:00]}  Nbd7 {[%clk 0:02:55]} 5. h3 {[%clk 0:03:00]}  Bh5 {[%clk 0:02:55]} 6. d3 {[%clk 0:03:01]}  c6 {[%clk 0:02:55]} 7. Qe1 {[%clk 0:03:01]}  e5 {[%clk 0:02:55]} 8. e4 {[%clk 0:03:02]}  Bxf3 {[%clk 0:02:53]} 9. Bxf3 {[%clk 0:03:02]}  Bc5 {[%clk 0:02:53]} 10. Nd2 {[%clk 0:02:57]}  O-O {[%clk 0:02:53]} 11. Bg2 {[%clk 0:02:57]}  Qc7 {[%clk 0:02:50]} 12. Kh2 {[%clk 0:02:57]}  Rad8 {[%clk 0:02:49]} 13. Qe2 {[%clk 0:02:56]}  Rfe8 {[%clk 0:02:49]} 14. Nb3 {[%clk 0:02:55]}  Bf8 {[%clk 0:02:48]} 15. a4 {[%clk 0:02:56]}  a5 {[%clk 0:02:47]} 16. Bd2 {[%clk 0:02:55]}  b6 {[%clk 0:02:47]} 17. Rae1 {[%clk 0:02:55]}  dxe4 {[%clk 0:02:46]} 18. dxe4 {[%clk 0:02:55]}  Nc5 {[%clk 0:02:47]} 19. Nxc5 {[%clk 0:02:46]}  Bxc5 {[%clk 0:02:48]} 20. Bc3 {[%clk 0:02:46]}  Bd4 {[%clk 0:02:47]} 21. Qc4 {[%clk 0:02:41]}  Bxc3 {[%clk 0:02:42]} 22. Qxc3 {[%clk 0:02:41]}  Rd4 {[%clk 0:02:40]} 23. b3 {[%clk 0:02:35]}  c5 {[%clk 0:02:40]} 24. Rd1 {[%clk 0:02:24]}  Qd6 {[%clk 0:02:35]} 25. Rxd4 {[%clk 0:02:22]}  Qxd4 {[%clk 0:02:34]} 26. Qxd4 {[%clk 0:02:17]}  cxd4 {[%clk 0:02:35]} 27. f3 {[%clk 0:02:09]}  Rc8 {[%clk 0:02:35]} 28. Rf2 {[%clk 0:02:09]}  Nd7 {[%clk 0:02:34]} 29. Bf1 {[%clk 0:02:09]}  Kf8 {[%clk 0:02:31]} 30. f4 {[%clk 0:02:02]}  Ke7 {[%clk 0:02:28]} 31. Bb5 {[%clk 0:01:42]}  Nc5 {[%clk 0:02:22]} 32. fxe5 {[%clk 0:01:27]}  Nxe4 {[%clk 0:02:21]} 33. Re2 {[%clk 0:01:24]}  Nc3 {[%clk 0:02:20]} 34. Rd2 {[%clk 0:01:25]}  Nxb5 {[%clk 0:01:45]} 35. axb5 {[%clk 0:01:26]}  Rc5 {[%clk 0:01:45]} 36. Rxd4 {[%clk 0:01:25]}  Rxc2+ {[%clk 0:01:45]} 37. Kg1 {[%clk 0:01:25]}  Rc5 {[%clk 0:01:46]} 38. b4 {[%clk 0:01:21]}  Rxb5 {[%clk 0:01:42]} 39. bxa5 {[%clk 0:01:20]}  bxa5 {[%clk 0:01:43]} 40. Rg4 {[%clk 0:01:04]}  g6 {[%clk 0:01:41]} 41. Rh4 {[%clk 0:01:02]}  Rxe5 {[%clk 0:01:33]} 42. Kf2 {[%clk 0:00:57]}  h5 {[%clk 0:01:29]} 43. Rc4 {[%clk 0:00:53]}  Kd6 {[%clk 0:01:14]} 44. Kf3 {[%clk 0:00:52]}  Re7 {[%clk 0:01:11]} 45. Ra4 {[%clk 0:00:45]}  Ra7 {[%clk 0:01:11]} 46. g4 {[%clk 0:00:45]}  hxg4+ {[%clk 0:01:11]} 47. hxg4 {[%clk 0:00:46]}  Kc5 {[%clk 0:01:11]} 48. Kf4 {[%clk 0:00:47]}  Kb5 {[%clk 0:01:11]} 49. Ra1 {[%clk 0:00:47]}  a4 {[%clk 0:01:12]} 50. Ke5 {[%clk 0:00:47]}  Kc4 {[%clk 0:01:12]} 51. g5 {[%clk 0:00:47]}  a3 {[%clk 0:01:11]} 52. Kf6 {[%clk 0:00:47]}  Kb3 {[%clk 0:01:11]} 53. Rf1 {[%clk 0:00:41]}  a2 {[%clk 0:01:11]} 54. Rf3+ {[%clk 0:00:40]}  Kc4 {[%clk 0:01:11]} 55. Rf1 {[%clk 0:00:39]}  a1=Q+ {[%clk 0:01:11]} 56. Rxa1 {[%clk 0:00:39]}  Rxa1 {[%clk 0:01:12]} 57. Kxf7 {[%clk 0:00:40]}  Ra6 {[%clk 0:01:13]} 0-1


[Site "https://www.chess.com"]

[Event "Titled Tuesday Blitz May 2 Early 2023"]
[White "Lucas, Arthur"]
[Black "Bolourchifard, Farzad"]
[WhiteFideId "26093073"]
[BlackFideId "12510084"]
[WhiteElo "2251"]
[BlackElo "2317"]
[Result "0-1"]
[Round "03"]
[TimeControl "180+2"]
[Date "2023.05.02"]
[WhiteClock "0:00:02"]
[BlackClock "0:00:20"]

1. e4 {[%clk 0:02:59]}  e5 {[%clk 0:02:59]} 2. Nf3 {[%clk 0:02:59]}  Nc6 {[%clk 0:02:59]} 3. Bb5 {[%clk 0:02:56]}  a6 {[%clk 0:02:59]} 4. Ba4 {[%clk 0:02:55]}  Nf6 {[%clk 0:03:00]} 5. d3 {[%clk 0:02:55]}  b5 {[%clk 0:03:00]} 6. Bb3 {[%clk 0:02:55]}  Bc5 {[%clk 0:03:00]} 7. a4 {[%clk 0:02:47]}  Rb8 {[%clk 0:02:58]} 8. Nc3 {[%clk 0:02:45]}  h6 {[%clk 0:02:53]} 9. axb5 {[%clk 0:02:41]}  axb5 {[%clk 0:02:52]} 10. Be3 {[%clk 0:02:22]}  Bxe3 {[%clk 0:02:47]} 11. fxe3 {[%clk 0:02:23]}  d6 {[%clk 0:02:47]} 12. O-O {[%clk 0:02:23]}  Be6 {[%clk 0:02:46]} 13. Bxe6 {[%clk 0:02:09]}  fxe6 {[%clk 0:02:45]} 14. Qe1 {[%clk 0:02:07]}  O-O {[%clk 0:02:44]} 15. Qg3 {[%clk 0:02:04]}  Qe8 {[%clk 0:02:40]} 16. Qh3 {[%clk 0:01:53]}  b4 {[%clk 0:02:29]} 17. Ne2 {[%clk 0:01:53]}  Qf7 {[%clk 0:02:22]} 18. Ng3 {[%clk 0:01:48]}  Ra8 {[%clk 0:02:12]} 19. d4 {[%clk 0:01:33]}  exd4 {[%clk 0:02:06]} 20. exd4 {[%clk 0:01:33]}  b3 {[%clk 0:02:00]} 21. c3 {[%clk 0:01:30]}  Ra2 {[%clk 0:01:49]} 22. Rxa2 {[%clk 0:01:26]}  bxa2 {[%clk 0:01:49]} 23. Ra1 {[%clk 0:01:27]}  Ra8 {[%clk 0:01:48]} 24. Qh4 {[%clk 0:00:58]}  Qg6 {[%clk 0:01:39]} 25. Qf4 {[%clk 0:00:52]}  Nh5 {[%clk 0:01:22]} 26. Nxh5 {[%clk 0:00:51]}  Qxh5 {[%clk 0:01:23]} 27. b4 {[%clk 0:00:45]}  e5 {[%clk 0:01:16]} 28. Qd2 {[%clk 0:00:40]}  exd4 {[%clk 0:01:14]} 29. Rxa2 {[%clk 0:00:41]}  Rxa2 {[%clk 0:01:11]} 30. Qxa2+ {[%clk 0:00:41]}  Kh7 {[%clk 0:01:10]} 31. cxd4 {[%clk 0:00:30]}  Nxd4 {[%clk 0:01:08]} 32. Qf2 {[%clk 0:00:12]}  Ne6 {[%clk 0:00:56]} 33. h3 {[%clk 0:00:06]}  Nf4 {[%clk 0:00:45]} 34. Nd4 {[%clk 0:00:05]}  Qg5 {[%clk 0:00:33]} 35. Kh2 {[%clk 0:00:04]}  Ng6 {[%clk 0:00:29]} 36. Nf5 {[%clk 0:00:03]}  Qf6 {[%clk 0:00:27]} 37. Qg3 {[%clk 0:00:03]}  Qb2 {[%clk 0:00:25]} 38. h4 {[%clk 0:00:02]}  Qe5 {[%clk 0:00:22]} 39. h5 {[%clk 0:00:02]}  Nf4 {[%clk 0:00:20]} 0-1


[Site "https://www.chess.com"]

[Event "Titled Tuesday Blitz May 2 Early 2023"]
[White "Yeritsyan, Hayk"]
[Black "Iliaguev, Nisim"]
[WhiteFideId "13307320"]
[BlackFideId "2817276"]
[WhiteElo "2241"]
[BlackElo "2241"]
[Result "1-0"]
[Round "03"]
[TimeControl "180+2"]
[Date "2023.05.02"]
[WhiteClock "0:00:13"]
[BlackClock "0:00:14"]

1. e4 {[%clk 0:03:00]}  c6 {[%clk 0:02:50]} 2. d3 {[%clk 0:02:52]}  d5 {[%clk 0:02:50]} 3. Nf3 {[%clk 0:02:47]}  Bg4 {[%clk 0:02:50]} 4. Be2 {[%clk 0:02:47]}  Bxf3 {[%clk 0:02:50]} 5. Bxf3 {[%clk 0:02:47]}  e6 {[%clk 0:02:51]} 6. O-O {[%clk 0:02:47]}  Nf6 {[%clk 0:02:52]} 7. Nc3 {[%clk 0:02:47]}  Nbd7 {[%clk 0:02:52]} 8. Re1 {[%clk 0:02:47]}  Bd6 {[%clk 0:02:43]} 9. exd5 {[%clk 0:02:39]}  cxd5 {[%clk 0:02:39]} 10. Nxd5 {[%clk 0:02:38]}  Nxd5 {[%clk 0:02:31]} 11. Bxd5 {[%clk 0:02:36]}  Qc7 {[%clk 0:02:31]} 12. h3 {[%clk 0:02:10]}  O-O {[%clk 0:02:28]} 13. Bf3 {[%clk 0:02:08]}  Rac8 {[%clk 0:02:28]} 14. c3 {[%clk 0:02:07]}  Rfd8 {[%clk 0:02:27]} 15. d4 {[%clk 0:02:06]}  e5 {[%clk 0:02:27]} 16. Bg5 {[%clk 0:02:05]}  Re8 {[%clk 0:02:14]} 17. Qb3 {[%clk 0:01:42]}  exd4 {[%clk 0:02:13]} 18. cxd4 {[%clk 0:01:41]}  Rxe1+ {[%clk 0:01:57]} 19. Rxe1 {[%clk 0:01:42]}  Qa5 {[%clk 0:01:56]} 20. Qe3 {[%clk 0:01:24]}  h6 {[%clk 0:01:43]} 21. Bh4 {[%clk 0:01:16]}  g5 {[%clk 0:01:12]} 22. Bg4 {[%clk 0:00:51]}  gxh4 {[%clk 0:00:53]} 23. Bxd7 {[%clk 0:00:50]}  Rd8 {[%clk 0:00:54]} 24. Bg4 {[%clk 0:00:49]}  Bf4 {[%clk 0:00:47]} 25. Qe4 {[%clk 0:00:40]}  Rxd4 {[%clk 0:00:44]} 26. Qe8+ {[%clk 0:00:40]}  Kg7 {[%clk 0:00:42]} 27. a3 {[%clk 0:00:24]}  Rd2 {[%clk 0:00:33]} 28. Qe4 {[%clk 0:00:21]}  Qc7 {[%clk 0:00:18]} 29. Bh5 {[%clk 0:00:13]}  Rxb2 {[%clk 0:00:16]} 30. Qd4+ {[%clk 0:00:12]}  Be5 {[%clk 0:00:14]} 31. Rxe5 {[%clk 0:00:12]}  Rb1+ {[%clk 0:00:14]} 32. Re1+ {[%clk 0:00:13]} 1-0


[Site "https://www.chess.com"]

[Event "Titled Tuesday Blitz May 2 Early 2023"]
[White "Perez Gormaz, Matias"]
[Black "Arpita, Mukherjee"]
[WhiteFideId "3406342"]
[BlackFideId "5056403"]
[WhiteElo "2362"]
[BlackElo "2129"]
[Result "1-0"]
[Round "03"]
[TimeControl "180+2"]
[Date "2023.05.02"]
[WhiteClock "0:00:17"]
[BlackClock "0:00:07"]

1. e4 {[%clk 0:03:00]}  c5 {[%clk 0:02:56]} 2. Nf3 {[%clk 0:03:01]}  d6 {[%clk 0:02:55]} 3. Bc4 {[%clk 0:03:01]}  Nf6 {[%clk 0:02:55]} 4. e5 {[%clk 0:02:56]}  dxe5 {[%clk 0:02:52]} 5. Nxe5 {[%clk 0:02:57]}  e6 {[%clk 0:02:51]} 6. Qe2 {[%clk 0:02:57]}  Be7 {[%clk 0:02:50]} 7. O-O {[%clk 0:02:57]}  O-O {[%clk 0:02:50]} 8. Re1 {[%clk 0:02:58]}  a6 {[%clk 0:02:41]} 9. a4 {[%clk 0:02:46]}  Bd6 {[%clk 0:02:35]} 10. Ra3 {[%clk 0:02:33]}  Bxe5 {[%clk 0:02:33]} 11. Qxe5 {[%clk 0:02:32]}  Nc6 {[%clk 0:02:34]} 12. Qxc5 {[%clk 0:02:32]}  e5 {[%clk 0:02:15]} 13. Rg3 {[%clk 0:02:21]}  Bf5 {[%clk 0:02:09]} 14. d3 {[%clk 0:02:12]}  Rc8 {[%clk 0:02:08]} 15. Qe3 {[%clk 0:01:56]}  Bg6 {[%clk 0:02:08]} 16. Na3 {[%clk 0:01:45]}  Re8 {[%clk 0:02:06]} 17. b3 {[%clk 0:01:25]}  Nd4 {[%clk 0:01:59]} 18. Qg5 {[%clk 0:01:02]}  Kh8 {[%clk 0:01:47]} 19. Bxf7 {[%clk 0:00:56]}  Nf5 {[%clk 0:01:20]} 20. Bxe8 {[%clk 0:00:52]}  Qxe8 {[%clk 0:01:16]} 21. Rf3 {[%clk 0:00:50]}  Nd4 {[%clk 0:00:50]} 22. Rxf6 {[%clk 0:00:50]}  gxf6 {[%clk 0:00:50]} 23. Qxf6+ {[%clk 0:00:51]}  Kg8 {[%clk 0:00:51]} 24. Bb2 {[%clk 0:00:37]}  Rc6 {[%clk 0:00:20]} 25. Qg5 {[%clk 0:00:37]}  Re6 {[%clk 0:00:13]} 26. h4 {[%clk 0:00:29]}  Kf7 {[%clk 0:00:06]} 27. h5 {[%clk 0:00:17]}  Bf5 {[%clk 0:00:06]} 28. Bxd4 {[%clk 0:00:17]}  exd4 {[%clk 0:00:07]} 29. Qxf5+ {[%clk 0:00:17]} 1-0


[Site "https://www.chess.com"]